fUST/lending_fUST_20241006
["ID","MTS","AMOUNT","RATE_DAILY","PERIOD"]
[339959139,1728222650160,-500.0,0.00013698,2]
[339959140,1728222650170,-151.0,0.00013698,2]
[339959141,1728222650179,-500.0,0.00013698,2]
[339959142,1728222650188,-500.0,0.00013698,2]
[339959143,1728222650199,-500.0,0.00013698,2]
[339959144,1728222650208,-820.72,0.00013698,2]
[339959145,1728222650218,-659.87,0.00013698,2]
[339959146,1728222650227,-500.0,0.00013698,2]
[339959147,1728222650236,-500.0,0.00013698,2]
[339959148,1728222650246,-500.0,0.00013698,2]
[339959149,1728222650255,-500.0,0.00013698,2]
[339959150,1728222650272,-589.74,0.00013698,2]
[339959151,1728222650281,-500.0,0.00013698,2]
[339959152,1728222650291,-502.6,0.00013698,2]
[339959153,1728222650300,-500.0,0.00013698,2]
[339959154,1728222650309,-500.0,0.00013698,2]
[339959155,1728222650319,-500.0,0.00013698,2]
[339959156,1728222650328,-500.0,0.00013698,2]
[339959157,1728222650337,-500.0,0.00013698,2]
[339959158,1728222650347,-151.0,0.00013698,2]
[339959159,1728222650356,-247.273231,0.00013698,2]
[339959160,1728222650365,-340.48152201,0.00013698,2]
[339959161,1728222650375,-500.0,0.00013698,2]
[339959162,1728222650384,-614.28,0.00013698,2]
[339959163,1728222650393,-500.0,0.00013698,2]
[339959164,1728222650402,-537.98116131,0.00013698,2]
[339959165,1728222650411,-500.0,0.00013698,2]
[339959166,1728222650420,-500.0,0.00013698,2]
[339959167,1728222650430,-559.04244448,0.00013698,2]
[339959168,1728222650439,-500.0,0.00013698,2]
[339959169,1728222650448,-420.27844767,0.00013698,2]
[339959170,1728222650458,-500.0,0.00013698,2]
[339959171,1728222650470,-611.5,0.00013698,2]
[339959172,1728222650481,-593.819042,0.00013698,2]
[339959173,1728222650491,-500.0,0.00013698,2]
[339959174,1728222650501,-500.0,0.00013698,2]
[339959175,1728222650514,-500.0,0.00013698,2]
[339959176,1728222650524,-500.0,0.00013698,2]
[339959177,1728222650534,-338.71808216,0.00013698,2]
[339959178,1728222650545,-500.0,0.00013698,2]
[339959179,1728222650556,-500.0,0.00013698,2]
[339959180,1728222650566,-500.0,0.00013698,2]
[339959181,1728222650576,-500.0,0.00013698,2]
[339959182,1728222650589,-500.0,0.00013698,2]
[339959183,1728222650599,-336.83877687,0.00013698,2]
[339959184,1728222650610,-500.0,0.00013698,2]
[339959185,1728222650620,-751.65,0.00013698,2]
[339959186,1728222650631,-500.0,0.00013698,2]
[339959187,1728222650640,-500.0,0.00013698,2]
[339959188,1728222650650,-500.0,0.00013698,2]
[339959189,1728222650659,-500.0,0.00013698,2]
[339959190,1728222650669,-500.0,0.00013698,2]
[339959191,1728222650678,-500.0,0.00013698,2]
[339959192,1728222650687,-500.0,0.00013698,2]
[339959193,1728222650696,-500.0,0.00013698,2]
[339959194,1728222650706,-500.0,0.00013698,2]
[339959195,1728222650716,-500.0,0.00013698,2]
[339959196,1728222650725,-500.0,0.00013698,2]
[339959197,1728222650734,-500.0,0.00013698,2]
[339959198,1728222650744,-500.0,0.00013698,2]
[339959199,1728222650753,-500.0,0.00013698,2]
[339959200,1728222650765,-500.0,0.00013698,2]
[339959201,1728222650774,-500.0,0.00013698,2]
[339959202,1728222650784,-500.0,0.00013698,2]
[339959203,1728222650793,-500.0,0.00013698,2]
[339959204,1728222650802,-500.0,0.00013698,2]
[339959205,1728222650812,-500.0,0.00013698,2]
[339959206,1728222650822,-500.0,0.00013698,2]
[339959207,1728222650831,-500.0,0.00013698,2]
[339959208,1728222650841,-500.0,0.00013698,2]
[339959209,1728222650850,-167.90163745,0.00013698,2]
[339959210,1728222650860,-664.53,0.00013698,2]
[339959211,1728222650870,-500.0,0.00013698,2]
[339959212,1728222650880,-500.0,0.00013698,2]
[339959213,1728222650889,-500.0,0.00013698,2]
[339959214,1728222650898,-500.0,0.00013698,2]
[339959215,1728222650908,-500.0,0.00013698,2]
[339959216,1728222650917,-500.0,0.00013698,2]
[339959217,1728222650927,-500.0,0.00013698,2]
[339959218,1728222650936,-570.57,0.00013698,2]
[339959219,1728222650946,-500.0,0.00013698,2]
[339959220,1728222650955,-500.0,0.00013698,2]
[339959221,1728222650964,-500.0,0.00013698,2]
[339959222,1728222650975,-500.0,0.00013698,2]
[339959223,1728222650984,-500.0,0.00013698,2]
[339959224,1728222650993,-500.0,0.00013698,2]
[339959225,1728222651002,-500.0,0.00013698,2]
[339959226,1728222651014,-500.0,0.00013698,2]
[339959227,1728222651023,-500.0,0.00013698,2]
[339959228,1728222651033,-675.12,0.00013698,2]
[339959229,1728222651043,-500.0,0.00013698,2]
[339959230,1728222651052,-500.0,0.00013698,2]
[339959231,1728222651061,-538.94,0.00013698,2]
[339959232,1728222651070,-500.0,0.00013698,2]
[339959233,1728222651080,-1018.33,0.00013698,2]
[339959234,1728222651090,-151.0,0.00013698,2]
[339959235,1728222651099,-151.0,0.00013698,2]
[339959236,1728222651108,-151.0,0.00013698,2]
[339959237,1728222651120,-500.0,0.00013698,2]
[339959238,1728222651131,-500.0,0.00013698,2]
[339959239,1728222651140,-500.0,0.00013698,2]
[339959240,1728222651150,-623.52,0.00013698,2]
[339959241,1728222651159,-500.0,0.00013698,2]
[339959242,1728222651169,-500.0,0.00013698,2]
[339959243,1728222651178,-500.0,0.00013698,2]
[339959244,1728222651186,-500.0,0.00013698,2]
[339959245,1728222651196,-500.0,0.00013698,2]
[339959246,1728222651205,-500.0,0.00013698,2]
[339959247,1728222651214,-500.0,0.00013698,2]
[339959248,1728222651224,-500.0,0.00013698,2]
[339959249,1728222651233,-500.0,0.00013698,2]
[339959250,1728222651242,-500.0,0.00013698,2]
[339959251,1728222651251,-750.54,0.00013698,2]
[339959252,1728222651261,-498.99680516,0.00013698,2]
[339959253,1728222651271,-500.0,0.00013698,2]
[339959254,1728222651280,-516.57,0.00013698,2]
[339959255,1728222651289,-500.0,0.00013698,2]
[339959256,1728222651299,-487.28676618,0.00013698,2]
[339959257,1728222651307,-500.0,0.00013698,2]
[339959258,1728222651316,-500.0,0.00013698,2]
[339959259,1728222651326,-500.0,0.00013698,2]
[339959260,1728222651335,-500.0,0.00013698,2]
[339959261,1728222651344,-730.71,0.00013698,2]
[339959262,1728222651354,-373.65696865,0.00013698,2]
[339959263,1728222651364,-500.0,0.00013698,2]
[339959264,1728222651373,-590.84,0.00013698,2]
[339959265,1728222651384,-762.39,0.00013698,2]
[339959266,1728222651394,-500.0,0.00013698,2]
[339959267,1728222651406,-500.0,0.00013698,2]
[339959268,1728222651417,-500.0,0.00013698,2]
[339959269,1728222651427,-815.89,0.00013698,2]
[339959270,1728222651436,-500.0,0.00013698,2]
[339959271,1728222651447,-500.0,0.00013698,2]
[339959272,1728222651460,-740.68,0.00013698,2]
[339959273,1728222651470,-570.28,0.00013698,2]
[339959274,1728222651482,-500.0,0.00013698,2]
[339959275,1728222651492,-643.3610749,0.00013698,2]
[339959276,1728222651501,-500.0,0.00013698,2]
[339959277,1728222651513,-500.0,0.00013698,2]
[339959278,1728222651523,-500.0,0.00013698,2]
[339959279,1728222651533,-500.0,0.00013698,2]
[339959280,1728222651547,-500.0,0.00013698,2]
[339959281,1728222651556,-500.0,0.00013698,2]
[339959282,1728222651566,-500.0,0.00013698,2]
[339959283,1728222651575,-500.0,0.00013698,2]
[339959284,1728222651584,-500.0,0.00013698,2]
[339959285,1728222651594,-500.0,0.00013698,2]
[339959286,1728222651603,-500.0,0.00013698,2]
[339959287,1728222651613,-500.0,0.00013698,2]
[339959288,1728222651623,-817.26,0.00013698,2]
[339959289,1728222651633,-710.16,0.00013698,2]
[339959290,1728222651643,-500.0,0.00013698,2]
[339959291,1728222651653,-500.0,0.00013698,2]
[339959292,1728222651663,-1461.775818,0.00013698,2]
[339959293,1728222651672,-1461.775818,0.00013698,2]
[339959294,1728222651681,-1461.775818,0.00013698,2]
[339959295,1728222651690,-1461.775819,0.00013698,2]
[339959296,1728222651699,-500.0,0.00013698,2]
[339959297,1728222651708,-707.07,0.00013698,2]
[339959298,1728222651718,-500.0,0.00013698,2]
[339959299,1728222651727,-500.0,0.00013698,2]
[339959300,1728222651737,-500.0,0.00013698,2]
[339959301,1728222651746,-500.0,0.00013698,2]
[339959302,1728222651756,-500.0,0.00013698,2]
[339959303,1728222651766,-500.0,0.00013698,2]
[339959304,1728222651776,-740.83,0.00013698,2]
[339959305,1728222651785,-500.0,0.00013698,2]
[339959306,1728222651794,-500.0,0.00013698,2]
[339959307,1728222651804,-500.0,0.00013698,2]
[339959308,1728222651813,-500.0,0.00013698,2]
[339959309,1728222651822,-500.0,0.00013698,2]
[339959310,1728222651831,-615.88,0.00013698,2]
[339959311,1728222651841,-500.0,0.00013698,2]
[339959312,1728222651850,-771.62,0.00013698,2]
[339959313,1728222651860,-526.62980869,0.00013698,2]
[339959314,1728222651870,-500.0,0.00013698,2]
[339959315,1728222651880,-500.0,0.00013698,2]
[339959316,1728222651890,-500.0,0.00013698,2]
[339959317,1728222651899,-500.0,0.00013698,2]
[339959318,1728222651908,-500.0,0.00013698,2]
[339959319,1728222651919,-500.0,0.00013698,2]
[339959320,1728222651929,-500.0,0.00013698,2]
[339959321,1728222651941,-500.0,0.00013698,2]
[339959322,1728222651952,-18.62837357,0.00013698,2]
[339959323,1728222652278,-481.37162643,0.00013698,2]
[339959324,1728222652289,-240.94472974,0.00013698,2]
[339959336,1728223280850,10000.0,0.00010209,2]
[339959338,1728223305811,10000.0,0.00010209,2]
[339959345,1728223723433,7042.0,0.0001,10]
[339959390,1728223838603,-300.0,0.00010958,2]
[339959391,1728223838615,-300.0,0.00010958,2]
[339959392,1728223838626,-918.56,0.00010959,2]
[339959393,1728223838638,-765.47,0.00010959,2]
[339959394,1728223838647,-637.89,0.00010959,2]
[339959395,1728223838657,-531.57,0.00010959,2]
[339959396,1728223838667,-442.98,0.00010959,2]
[339959397,1728223838677,-369.15,0.00010959,2]
[339959398,1728223838688,-307.62,0.00010959,2]
[339959399,1728223838701,-256.35,0.00010959,2]
[339959400,1728223838710,-213.63,0.00010959,2]
[339959401,1728223838719,-24900.0,0.00011628,2]
[339959402,1728223838728,-252.395134,0.00012,2]
[339959403,1728223838738,-869.30648719,0.00012042,2]
[339959404,1728223838747,-420.0,0.00012042,2]
[339959405,1728223838757,-420.0,0.00012054,2]
[339959406,1728223838769,-250.0,0.00012476,2]
[339959407,1728223838779,-250.0,0.0001251,2]
[339959408,1728223838790,-250.0,0.00012545,2]
[339959409,1728223838801,-250.0,0.00012579,2]
[339959410,1728223838811,-250.0,0.00012613,2]
[339959411,1728223838821,-250.0,0.00012647,2]
[339959412,1728223838832,-250.0,0.00012681,2]
[339959413,1728223838843,-250.0,0.00012716,2]
[339959414,1728223838854,-250.0,0.0001275,2]
[339959415,1728223838865,-250.0,0.00012784,2]
[339959416,1728223838876,-250.0,0.00012818,2]
[339959417,1728223838885,-250.0,0.00012853,2]
[339959418,1728223838894,-250.0,0.00012887,2]
[339959419,1728223838905,-3162.56686724,0.000129,2]
[339959420,1728223838915,-250.0,0.00012921,2]
[339959421,1728223838926,-250.0,0.00012955,2]
[339959422,1728223838937,-250.0,0.00012989,2]
[339959423,1728223838947,-250.0,0.00013024,2]
[339959424,1728223838956,-250.0,0.00013058,2]
[339959425,1728223838966,-250.0,0.00013092,2]
[339959426,1728223838975,-250.0,0.00013126,2]
[339959427,1728223838984,-3162.56686717,0.00013203,2]
[339959428,1728223838993,-587.0,0.00013233,2]
[339959429,1728223839003,-587.0,0.00013259,2]
[339959430,1728223839011,-165.284873,0.00013418,2]
[339959431,1728223839021,-1000.0,0.00013428,2]
[339959432,1728223839031,-1000.0,0.00013495,2]
[339959433,1728223839040,-1000.0,0.00013521,2]
[339959434,1728223839050,-1000.0,0.00013558,2]
[339959435,1728223839061,-439.24567211,0.00013584,2]
[339959436,1728223839071,-638.57393838,0.00013598,2]
[339959437,1728223839080,-183.04689673,0.000136,2]
[339959438,1728223839089,-153.278941,0.000136,2]
[339959439,1728223839101,-300.0,0.000136,4]
[339959440,1728223839111,-1000.0,0.00013621,2]
[339959441,1728223839121,-151.0,0.00013628,2]
[339959442,1728223839131,-151.0,0.00013628,2]
[339959443,1728223839143,-151.0,0.00013646,2]
[339959444,1728223839153,-151.0,0.00013646,2]
[339959445,1728223839164,-151.0,0.00013648,2]
[339959446,1728223839175,-151.0,0.00013648,2]
[339959447,1728223839184,-3162.56686717,0.00013652,2]
[339959448,1728223839197,-151.0,0.00013658,2]
[339959449,1728223839207,-1000.0,0.00013666,2]
[339959450,1728223839218,-1000.0,0.00013675,2]
[339959451,1728223839230,-230470.816602,0.00013678,2]
[339959452,1728223839240,-23425.9235991,0.00013678,2]
[339959453,1728223839250,-2342.59235991,0.00013678,2]
[339959454,1728223839259,-150.0,0.00013684,2]
[339959455,1728223839270,-525.0,0.00013684,2]
[339959456,1728223839280,-1229.584,0.00013684,2]
[339959457,1728223839293,-16398.1465194,0.00013688,2]
[339959458,1728223839302,-308.21303448,0.00013689,2]
[339959459,1728223839317,-2034.37932543,0.00013689,2]
[339959460,1728223839327,-2342.59235991,0.0001369,2]
[339959461,1728223839338,-1048.4274736,0.00013698,2]
[339959462,1728223839347,-1048.4274736,0.00013698,2]
[339959463,1728223839360,-500.0,0.00013698,2]
[339959464,1728223839371,-500.0,0.00013698,2]
[339959465,1728223839380,-500.0,0.00013698,2]
[339959466,1728223839390,-500.0,0.00013698,2]
[339959467,1728223839400,-165.21965178,0.00013698,2]
[339959468,1728223839409,-500.0,0.00013698,2]
[339959469,1728223839418,-500.0,0.00013698,2]
[339959470,1728223839427,-500.0,0.00013698,2]
[339959471,1728223839437,-546.8,0.00013698,2]
[339959472,1728223839448,-636.85,0.00013698,2]
[339959473,1728223839457,-500.0,0.00013698,2]
[339959474,1728223839466,-516.49,0.00013698,2]
[339959475,1728223839475,-500.0,0.00013698,2]
[339959476,1728223839485,-500.0,0.00013698,2]
[339959477,1728223839495,-500.0,0.00013698,2]
[339959478,1728223839506,-500.0,0.00013698,2]
[339959479,1728223839515,-500.0,0.00013698,2]
[339959480,1728223839526,-383.30593725,0.00013698,2]
[339959497,1728223840584,-116.69406275,0.00013698,2]
[339959498,1728223840597,-719.27,0.00013698,2]
[339959499,1728223840608,-500.0,0.00013698,2]
[339959500,1728223840618,-215.39473056,0.00013698,2]
[339959501,1728223840629,-646.99,0.00013698,2]
[339959502,1728223840641,-597.54,0.00013698,2]
[339959503,1728223840652,-500.0,0.00013698,2]
[339959504,1728223840663,-500.0,0.00013698,2]
[339959505,1728223840675,-500.0,0.00013698,2]
[339959506,1728223840693,-500.0,0.00013698,2]
[339959507,1728223840709,-500.0,0.00013698,2]
[339959508,1728223840720,-500.0,0.00013698,2]
[339959509,1728223840730,-500.0,0.00013698,2]
[339959510,1728223840744,-500.0,0.00013698,2]
[339959511,1728223840755,-500.0,0.00013698,2]
[339959512,1728223840766,-309.63235495,0.00013698,2]
[339959513,1728223840778,-500.0,0.00013698,2]
[339959514,1728223840790,-500.0,0.00013698,2]
[339959515,1728223840802,-781.9,0.00013698,2]
[339959516,1728223840812,-500.0,0.00013698,2]
[339959517,1728223840823,-151.0,0.00013698,2]
[339959518,1728223840834,-151.0,0.00013698,2]
[339959519,1728223840845,-298.3403095,0.00013698,2]
[339959520,1728223840856,-500.0,0.00013698,2]
[339959521,1728223840868,-500.0,0.00013698,2]
[339959522,1728223840879,-500.0,0.00013698,2]
[339959523,1728223840890,-500.0,0.00013698,2]
[339959524,1728223840899,-500.0,0.00013698,2]
[339959525,1728223840909,-500.0,0.00013698,2]
[339959526,1728223840918,-500.0,0.00013698,2]
[339959527,1728223840928,-151.0,0.00013698,2]
[339959528,1728223840937,-151.0,0.00013698,2]
[339959529,1728223840948,-500.0,0.00013698,2]
[339959530,1728223840958,-500.0,0.00013698,2]
[339959531,1728223840968,-500.0,0.00013698,2]
[339959532,1728223840977,-783.21,0.00013698,2]
[339959533,1728223840986,-151.0,0.00013698,2]
[339959534,1728223840996,-151.0,0.00013698,2]
[339959535,1728223841005,-500.0,0.00013698,2]
[339959536,1728223841015,-500.0,0.00013698,2]
[339959537,1728223841024,-500.0,0.00013698,2]
[339959538,1728223841034,-500.0,0.00013698,2]
[339959539,1728223841043,-500.0,0.00013698,2]
[339959540,1728223841054,-590.22,0.00013698,2]
[339959541,1728223841063,-151.0,0.00013698,2]
[339959542,1728223841073,-500.0,0.00013698,2]
[339959543,1728223841082,-151.0,0.00013698,2]
[339959544,1728223841093,-500.0,0.00013698,2]
[339959545,1728223841106,-500.0,0.00013698,2]
[339959546,1728223841115,-151.0,0.00013698,2]
[339959547,1728223841124,-152.116987,0.00013698,2]
[339959548,1728223841134,-801.21,0.00013698,2]
[339959549,1728223841145,-500.0,0.00013698,2]
[339959550,1728223841155,-500.0,0.00013698,2]
[339959551,1728223841165,-1256.73,0.00013698,2]
[339959552,1728223841175,-500.0,0.00013698,2]
[339959553,1728223841185,-500.0,0.00013698,2]
[339959554,1728223841194,-500.0,0.00013698,2]
[339959555,1728223841204,-1284.17,0.00013698,2]
[339959556,1728223841213,-500.0,0.00013698,2]
[339959557,1728223841223,-770.467358,0.00013698,2]
[339959558,1728223841233,-770.467358,0.00013698,2]
[339959559,1728223841242,-770.467358,0.00013698,2]
[339959560,1728223841251,-770.467358,0.00013698,2]
[339959561,1728223841260,-500.0,0.00013698,2]
[339959562,1728223841271,-500.0,0.00013698,2]
[339959563,1728223841280,-500.0,0.00013698,2]
[339959564,1728223841289,-597.32,0.00013698,2]
[339959565,1728223841299,-500.0,0.00013698,2]
[339959566,1728223841314,-616.30643761,0.00013698,2]
[339959567,1728223841324,-500.0,0.00013698,2]
[339959568,1728223841333,-500.0,0.00013698,2]
[339959569,1728223841343,-500.0,0.00013698,2]
[339959570,1728223841353,-519.48,0.00013698,2]
[339959571,1728223841362,-500.0,0.00013698,2]
[339959572,1728223841372,-500.0,0.00013698,2]
[339959573,1728223841382,-500.0,0.00013698,2]
[339959574,1728223841392,-500.0,0.00013698,2]
[339959575,1728223841402,-651.95,0.00013698,2]
[339959576,1728223841412,-646.49,0.00013698,2]
[339959577,1728223841422,-500.0,0.00013698,2]
[339959578,1728223841432,-151.0,0.00013698,2]
[339959579,1728223841442,-151.0,0.00013698,2]
[339959580,1728223841453,-151.0,0.00013698,2]
[339959581,1728223841463,-151.0,0.00013698,2]
[339959582,1728223841473,-500.0,0.00013698,2]
[339959583,1728223841484,-500.0,0.00013698,2]
[339959584,1728223841496,-151.0,0.00013698,2]
[339959585,1728223841507,-151.0,0.00013698,2]
[339959586,1728223841518,-1062.73,0.00013698,2]
[339959587,1728223841529,-500.0,0.00013698,2]
[339959588,1728223841539,-500.0,0.00013698,2]
[339959589,1728223841550,-500.0,0.00013698,2]
[339959590,1728223841562,-500.0,0.00013698,2]
[339959591,1728223841573,-500.0,0.00013698,2]
[339959592,1728223841584,-500.0,0.00013698,2]
[339959593,1728223841594,-500.0,0.00013698,2]
[339959594,1728223841603,-500.0,0.00013698,2]
[339959595,1728223841613,-500.0,0.00013698,2]
[339959596,1728223841625,-500.0,0.00013698,2]
[339959597,1728223841637,-500.0,0.00013698,2]
[339959598,1728223841648,-396.2307833,0.00013698,2]
[339959599,1728223841892,-500.0,0.00013698,2]
[339959600,1728223841904,-642.06,0.00013698,2]
[339959601,1728223841916,-500.0,0.00013698,2]
[339959602,1728223841928,-500.0,0.00013698,2]
[339959603,1728223841939,-500.0,0.00013698,2]
[339959604,1728223841950,-620.41,0.00013698,2]
[339959605,1728223841962,-534.05111805,0.00013698,2]
[339959606,1728223841971,-500.0,0.00013698,2]
[339959607,1728223841980,-500.0,0.00013698,2]
[339959608,1728223841989,-1065.92,0.00013698,2]
[339959609,1728223842000,-500.0,0.00013698,2]
[339959610,1728223842011,-620.94,0.00013698,2]
[339959611,1728223842023,-500.0,0.00013698,2]
[339959612,1728223842032,-500.0,0.00013698,2]
[339959613,1728223842044,-500.0,0.00013698,2]
[339959614,1728223842058,-611.01443007,0.00013698,2]
[339959615,1728223842068,-500.0,0.00013698,2]
[339959616,1728223842079,-500.0,0.00013698,2]
[339959617,1728223842088,-500.0,0.00013698,2]
[339959618,1728223842101,-500.0,0.00013698,2]
[339959619,1728223842111,-500.0,0.00013698,2]
[339959620,1728223842123,-500.0,0.00013698,2]
[339959621,1728223842133,-500.0,0.00013698,2]
[339959622,1728223842143,-500.0,0.00013698,2]
[339959623,1728223842153,-500.0,0.00013698,2]
[339959624,1728223842165,-500.0,0.00013698,2]
[339959625,1728223842175,-500.0,0.00013698,2]
[339959626,1728223842186,-157.72939587,0.00013698,2]
[339959627,1728223842196,-500.0,0.00013698,2]
[339959628,1728223842206,-500.0,0.00013698,2]
[339959629,1728223842215,-500.0,0.00013698,2]
[339959630,1728223842225,-500.0,0.00013698,2]
[339959631,1728223842234,-500.0,0.00013698,2]
[339959632,1728223842243,-500.0,0.00013698,2]
[339959633,1728223842253,-500.0,0.00013698,2]
[339959634,1728223842262,-700.26,0.00013698,2]
[339959635,1728223842271,-500.0,0.00013698,2]
[339959636,1728223842282,-500.0,0.00013698,2]
[339959637,1728223842291,-500.0,0.00013698,2]
[339959638,1728223842301,-566.22,0.00013698,2]
[339959639,1728223842311,-151.0,0.00013698,2]
[339959640,1728223842321,-546.52,0.00013698,2]
[339959641,1728223842331,-500.0,0.00013698,2]
[339959642,1728223842341,-500.0,0.00013698,2]
[339959643,1728223842351,-975.9,0.00013698,2]
[339959644,1728223842361,-500.0,0.00013698,2]
[339959645,1728223842372,-500.0,0.00013698,2]
[339959646,1728223842381,-500.0,0.00013698,2]
[339959647,1728223842392,-500.0,0.00013698,2]
[339959648,1728223842403,-709.82,0.00013698,2]
[339959649,1728223842412,-500.0,0.00013698,2]
[339959650,1728223842422,-500.0,0.00013698,2]
[339959651,1728223842434,-500.0,0.00013698,2]
[339959652,1728223842445,-500.0,0.00013698,2]
[339959653,1728223842457,-500.0,0.00013698,2]
[339959654,1728223842468,-500.0,0.00013698,2]
[339959655,1728223842479,-500.0,0.00013698,2]
[339959656,1728223842490,-1000.0,0.00013698,2]
[339959657,1728223842500,-571.4,0.00013698,2]
[339959658,1728223842512,-599.92583376,0.00013698,2]
[339959659,1728223842524,-500.0,0.00013698,2]
[339959660,1728223842534,-500.0,0.00013698,2]
[339959661,1728223842543,-500.0,0.00013698,2]
[339959662,1728223842553,-556.25,0.00013698,2]
[339959663,1728223842563,-540.22084675,0.00013698,2]
[339959664,1728223842572,-500.0,0.00013698,2]
[339959665,1728223842581,-526.56,0.00013698,2]
[339959666,1728223842591,-500.0,0.00013698,2]
[339959667,1728223842601,-500.0,0.00013698,2]
[339959668,1728223842611,-500.0,0.00013698,2]
[339959669,1728223842620,-500.0,0.00013698,2]
[339959670,1728223842629,-500.0,0.00013698,2]
[339959671,1728223842638,-500.0,0.00013698,2]
[339959672,1728223842648,-500.0,0.00013698,2]
[339959673,1728223842657,-500.0,0.00013698,2]
[339959674,1728223842666,-500.0,0.00013698,2]
[339959675,1728223842676,-500.0,0.00013698,2]
[339959676,1728223842685,-500.0,0.00013698,2]
[339959677,1728223842694,-500.0,0.00013698,2]
[339959678,1728223842704,-500.34678561,0.00013698,2]
[339959679,1728223842713,-151.0,0.00013698,2]
[339959680,1728223842722,-151.0,0.00013698,2]
[339959681,1728223842732,-500.0,0.00013698,2]
[339959682,1728223842753,-500.0,0.00013698,2]
[339959683,1728223842765,-1278.33,0.00013698,2]
[339959684,1728223842776,-163.184586,0.00013698,2]
[339959685,1728223842788,-500.0,0.00013698,2]
[339959686,1728223842799,-677.61,0.00013698,2]
[339959687,1728223842811,-500.0,0.00013698,2]
[339959688,1728223842824,-500.0,0.00013698,2]
[339959689,1728223842834,-730.63,0.00013698,2]
[339959690,1728223842844,-500.0,0.00013698,2]
[339959691,1728223842855,-500.0,0.00013698,2]
[339959692,1728223842866,-618.81434369,0.00013698,2]
[339959693,1728223842876,-151.0,0.00013698,2]
[339959694,1728223842886,-158.997168,0.00013698,2]
[339959695,1728223842897,-500.0,0.00013698,2]
[339959696,1728223842908,-500.0,0.00013698,2]
[339959697,1728223842917,-709.96,0.00013698,2]
[339959698,1728223842926,-500.0,0.00013698,2]
[339959699,1728223842936,-500.0,0.00013698,2]
[339959700,1728223842946,-500.0,0.00013698,2]
[339959701,1728223842955,-500.0,0.00013698,2]
[339959702,1728223842965,-500.0,0.00013698,2]
[339959703,1728223842974,-500.0,0.00013698,2]
[339959704,1728223842984,-739.47,0.00013698,2]
[339959705,1728223842993,-393.64110714,0.00013698,2]
[339959706,1728223843002,-486.0445005,0.00013698,2]
[339959707,1728223843012,-477.05153034,0.00013698,2]
[339959708,1728223843022,-500.0,0.00013698,2]
[339959709,1728223843032,-500.0,0.00013698,2]
[339959710,1728223843042,-500.0,0.00013698,2]
[339959711,1728223843052,-500.0,0.00013698,2]
[339959712,1728223843061,-500.0,0.00013698,2]
[339959713,1728223843070,-500.0,0.00013698,2]
[339959714,1728223843080,-598.72,0.00013698,2]
[339959715,1728223843089,-500.0,0.00013698,2]
[339959716,1728223843101,-500.0,0.00013698,2]